bitfinex-derivatives/quotes_SOLF0:USTF0_20260310
["timestamp","ask_amount","ask_price","bid_price","bid_amount"]
[1773137028872,10.311,87.278,87.231,3.94933697]
[1773137030367,10.311,87.278,87.234,10.316]
[1773137030674,10.311,87.275,87.234,10.316]
[1773137031468,10.31,87.282,87.241,4.23318781]
[1773137031671,6.0532968,87.29,87.241,4.23318781]
[1773137031871,6.0532968,87.29,87.243,28.2256648]
[1773137032274,6.0532968,87.29,87.242,28.2256648]
[1773137032769,6.0532968,87.304,87.251,4.2803065]
[1773137033278,16.3612968,87.304,87.257,10.313]
[1773137033669,16.3612968,87.304,87.257,14.6276017]
[1773137033865,6.0532968,87.304,87.257,14.6276017]
[1773137035473,6.0532968,87.304,87.263,10.313]
[1773137036465,10.308,87.303,87.263,10.313]
[1773137037376,10.308,87.303,87.264,21.15659899]
[1773137037570,6.0532968,87.304,87.265,10.312]
[1773137037775,10.307,87.311,87.27,13.436811]
[1773137038475,16.3602968,87.311,87.27,13.436811]
[1773137038667,10.308,87.305,87.27,13.436811]
[1773137038873,6.0532968,87.304,87.265,21.15659899]
[1773137039374,6.0532968,87.304,87.264,21.15659899]
[1773137039677,6.0532968,87.3,87.256,21.15659899]
[1773137040270,6.0532968,87.3,87.255,21.15659899]
[1773137040473,6.0532968,87.29,87.255,21.15659899]
[1773137041282,6.0532968,87.286,87.252,21.15659899]
[1773137041878,6.0532968,87.286,87.264,14.10516951]
[1773137042080,10.31,87.284,87.264,14.10516951]
[1773137042279,6.0532968,87.299,87.265,14.10516951]
[1773137042479,6.0532968,87.299,87.269,14.10516951]
[1773137043378,10.309,87.297,87.269,14.10516951]
[1773137044481,6.27846499,87.296,87.269,14.10516951]
[1773137046084,10.309,87.295,87.269,14.10516951]
[1773137046485,6.27846499,87.294,87.269,14.10516951]
[1773137047184,6.27846499,87.294,87.271,14.10516951]
[1773137047982,16.58646499,87.306,87.271,14.10516951]
[1773137048184,6.27846499,87.306,87.273,14.10516951]
[1773137048380,6.27846499,87.306,87.25,4.49458677]
[1773137048381,6.27846499,87.346,87.277,4.7183854]
[1773137048587,6.27846499,87.346,87.241,34.42]
[1773137048588,6.27846499,87.417,87.34,9.01103887]
[1773137049083,6.27846499,87.415,87.34,23.11620838]
[1773137049274,6.27846499,87.415,87.34,9.01103887]
[1773137049476,6.27846499,87.392,87.34,9.01103887]
[1773137049874,160.053,87.467,87.3,9.01103887]
[1773137049875,6.27846499,87.406,87.36,9.01103887]
[1773137050082,6.27846499,87.421,87.38,9.01103887]
[1773137050381,6.27846499,87.41,87.361,18.86871757]
[1773137050679,6.27846499,87.41,87.352,18.71261968]
[1773137050878,6.27846499,87.41,87.352,4.60745017]
[1773137051581,10.297,87.392,87.352,4.60745017]
[1773137052182,10.298,87.384,87.352,4.60745017]
[1773137053790,10.297,87.395,87.352,4.60745017]
[1773137056191,6.27846499,87.395,87.337,4.87133676]
[1773137056685,10.298,87.384,87.337,4.87133676]
[1773137064594,6.27846499,87.375,87.33,9.01103887]
[1773137065789,6.27846499,87.375,87.333,5.04099559]
[1773137067697,10.299,87.378,87.333,5.04099559]
[1773137068188,10.299,87.378,87.33,8.97962613]
[1773137068189,10.299,87.378,87.337,5.13620339]
[1773137068389,10.298,87.386,87.337,5.13620339]
[1773137069396,10.298,87.386,87.339,5.18139472]
[1773137069599,10.298,87.386,87.36,3.35140024]
[1773137070191,10.299,87.379,87.35,3.35140024]
[1773137072699,10.299,87.379,87.36,3.35140024]
[1773137074202,6.27846499,87.392,87.37,0.00040024]
[1773137074401,6.27846499,87.392,87.339,5.18139472]
[1773137074402,6.27846499,87.392,87.36,3.35140024]
[1773137074604,10.3,87.373,87.36,3.35140024]
[1773137075107,10.3,87.373,87.339,15.59971806]
[1773137075301,10.3,87.373,87.36,0.00040024]
[1773137076005,10.301,87.364,87.34,10.41832334]
[1773137076203,6.71163759,87.372,87.33,3.35140024]
[1773137076701,10.303,87.343,87.32,3.35140024]
[1773137078807,10.303,87.343,87.33,3.35140024]
[1773137080608,10.302,87.35,87.33,3.35140024]
[1773137083103,6.71163759,87.352,87.33,0.00040024]
[1773137083309,6.71163759,87.352,87.32,3.35140024]
[1773137084013,10.303,87.345,87.32,3.35140024]
[1773137085915,10.303,87.345,87.33,3.35140024]
[1773137088208,10.303,87.345,87.33,0.00040024]
[1773137088414,10.303,87.345,87.32,3.35140024]
[1773137089411,6.86847208,87.337,87.31,3.35140024]
[1773137089615,6.86847208,87.337,87.3,3.35140024]
[1773137090114,10.305,87.326,87.3,3.35140024]
[1773137090714,10.306,87.319,87.3,3.35140024]
[1773137091019,10.306,87.319,87.293,14.10516951]
[1773137091219,10.306,87.319,87.295,14.10516951]
[1773137091416,10.307,87.313,87.295,14.10516951]
[1773137092317,10.307,87.313,87.29,3.35140024]
[1773137092318,10.307,87.313,87.297,14.10516951]
[1773137093212,10.307,87.313,87.3,14.10516951]
[1773137093417,10.307,87.313,87.3,0.00016951]
[1773137093923,10.307,87.313,87.29,3.35140024]
[1773137095218,10.307,87.313,87.283,6.68229753]
[1773137095219,6.86847208,87.359,87.3,3.35140024]
[1773137095720,6.86847208,87.346,87.31,3.35140024]
[1773137096222,10.305,87.328,87.31,3.35140024]
[1773137096617,10.305,87.328,87.301,6.68229753]
[1773137098224,10.304,87.337,87.301,6.68229753]
[1773137098417,20.601,87.368,87.292,6.68229753]
[1773137098418,6.86847208,87.336,87.292,6.68229753]
[1773137098616,6.86847208,87.336,87.3,3.35140024]
[1773137098815,6.86847208,87.336,87.31,3.35140024]
[1773137099018,6.86847208,87.367,87.31,3.35140024]
[1773137099425,6.86847208,87.349,87.31,3.35140024]
[1773137100319,10.304,87.339,87.32,3.35140024]
[1773137102419,6.86847208,87.349,87.31,3.35140024]
[1773137102924,6.86847208,87.335,87.3,3.35140024]
[1773137103622,6.86847208,87.335,87.245,35.3909522]
[1773137103623,10.306,87.322,87.29,3.35140024]
[1773137104019,6.89930768,87.323,87.3,3.35140024]
[1773137104426,10.306,87.322,87.3,3.35140024]
[1773137104823,20.601,87.368,87.31,3.35140024]
[1773137105129,11.48,87.433,87.283,21.05826382]
[1773137105130,6.89930768,87.409,87.361,6.69088532]
[1773137105325,6.89930768,87.439,87.39,0.00040024]
[1773137105928,6.89930768,87.439,87.38,0.00040024]
[1773137106131,6.89930768,87.421,87.39,3.35140024]
[1773137106428,6.89930768,87.421,87.39,0.00040024]
[1773137106729,10.295,87.409,87.39,0.00040024]
[1773137106931,6.89930768,87.421,87.39,0.00040024]
[1773137107629,10.295,87.409,87.38,8.96951622]
[1773137107825,6.89930768,87.421,87.38,8.96951622]
[1773137108530,10.295,87.409,87.38,8.96951622]
[1773137108735,6.89930768,87.421,87.38,8.96951622]
[1773137110431,10.294,87.418,87.38,8.96951622]
[1773137113529,6.89930768,87.421,87.351,6.69088532]
[1773137114732,6.89930768,87.392,87.35,8.96951622]
[1773137114933,6.89930768,87.392,87.337,6.69088532]
[1773137115438,6.89930768,87.392,87.35,8.96951622]
[1773137115633,6.89930768,87.392,87.341,6.69088532]
[1773137116335,10.299,87.376,87.33,8.96951622]
[1773137116934,10.299,87.376,87.331,6.69088532]
[1773137117140,10.3,87.366,87.331,6.69088532]
[1773137117641,10.302,87.35,87.31,8.96951622]
[1773137118041,6.89930768,87.366,87.31,8.96951622]
[1773137118636,6.89930768,87.379,87.312,6.69088532]
[1773137119443,6.89930768,87.379,87.314,6.69088532]
[1773137120444,10.301,87.36,87.314,6.69088532]
[1773137121943,10.301,87.36,87.315,6.69088532]
[1773137122242,10.3,87.369,87.315,6.69088532]
[1773137122543,6.89930768,87.403,87.331,6.69088532]
[1773137123434,10.298,87.384,87.339,6.69088532]
[1773137124340,10.298,87.384,87.341,10.303]
[1773137124545,10.298,87.384,87.342,6.69088532]
[1773137124840,10.298,87.391,87.351,6.69088532]
[1773137125039,10.298,87.391,87.352,13.97647749]
[1773137125236,10.298,87.391,87.351,20.66736281]
[1773137125946,10.297,87.4,87.352,6.69088532]
[1773137126441,10.297,87.4,87.359,13.97647749]
[1773137126641,10.297,87.4,87.36,13.97647749]
[1773137127343,10.298,87.387,87.359,13.97647749]
[1773137127540,10.298,87.387,87.358,13.97647749]
[1773137127741,10.298,87.387,87.359,13.97647749]
[1773137128247,10.298,87.387,87.358,13.97647749]
[1773137129347,10.297,87.399,87.359,6.69088532]
[1773137129848,10.297,87.393,87.359,6.69088532]
[1773137130350,6.89930768,87.417,87.359,6.69088532]
[1773137130550,6.89930768,87.417,87.361,6.69088532]
[1773137130745,6.89930768,87.417,87.367,6.69088532]
[1773137131344,6.89930768,87.431,87.367,6.69088532]
[1773137131546,10.296,87.408,87.371,6.69088532]
[1773137131752,6.89930768,87.431,87.371,6.69088532]
[1773137132447,6.89930768,87.417,87.371,6.69088532]
[1773137133143,6.89930768,87.439,87.371,6.69088532]
[1773137134352,10.295,87.413,87.371,6.69088532]
[1773137134949,10.296,87.407,87.371,6.69088532]
[1773137135550,10.295,87.416,87.371,6.69088532]
[1773137136355,10.295,87.416,87.374,6.21398714]
[1773137137049,10.295,87.416,87.376,6.19318422]
[1773137137250,10.294,87.423,87.376,6.19318422]
[1773137137447,10.294,87.423,87.378,6.214477]
[1773137138358,10.294,87.423,87.381,6.21254251]
[1773137138954,10.294,87.423,87.385,6.08141052]
[1773137139357,10.294,87.423,87.386,6.10221095]
[1773137140554,10.294,87.423,87.386,16.56739315]
[1773137141459,10.294,87.423,87.388,6.12177053]
[1773137142656,10.294,87.423,87.389,6.07895572]
[1773137143360,10.294,87.423,87.39,6.07895572]
[1773137145357,9.29151101,87.509,87.41,8.97513509]
[1773137145556,9.29257177,87.499,87.422,10.4651822]
[1773137145759,8.97513509,87.5,87.418,10.4651822]
[1773137145760,9.29257177,87.461,87.418,10.4651822]
[1773137146061,9.29257177,87.461,87.419,10.4651822]
[1773137146361,9.29257177,87.461,87.417,10.4651822]
[1773137146755,10.29,87.453,87.417,10.4651822]
[1773137147558,10.29,87.453,87.42,3.34667358]
[1773137149668,10.29,87.453,87.419,10.4651822]
[1773137149862,10.29,87.453,87.42,3.34667358]
[1773137150065,10.29,87.453,87.421,10.4651822]
[1773137150261,10.29,87.453,87.42,3.34667358]
[1773137152170,10.29,87.453,87.43,3.34667358]
[1773137153271,10.289,87.46,87.43,3.34667358]
[1773137153766,9.22239267,87.459,87.43,3.34667358]
[1773137153966,10.29,87.451,87.416,10.4651822]
[1773137154164,10.29,87.451,87.43,3.34667358]
[1773137155769,19.51239267,87.459,87.44,3.34667358]
[1773137155968,9.22239267,87.459,87.43,3.34667358]
[1773137157477,10.29,87.453,87.43,3.34667358]
[1773137160271,9.22239267,87.459,87.43,3.34667358]
[1773137160474,19.81883711,87.556,87.457,13.97647749]
[1773137160767,10.279,87.547,87.53,0.00067358]
[1773137160973,20.545,87.608,87.54,0.00067358]
[1773137161176,20.545,87.608,87.516,10.40483056]
[1773137161371,20.539,87.632,87.529,10.281]
[1773137161573,159.697,87.662,87.544,10.40483056]
[1773137161774,159.688,87.667,87.55,10.40483056]
[1773137161974,159.671,87.676,87.563,10.40483056]
[1773137162168,159.676,87.673,87.547,10.36557063]
[1773137162368,159.676,87.673,87.553,10.278]
[1773137162571,159.708,87.656,87.536,10.36557063]
[1773137162774,17.03764825,87.658,87.532,10.36557063]
[1773137162973,17.03764825,87.658,87.469,20.577]
[1773137162974,17.03764825,87.626,87.534,10.36557063]
[1773137163179,17.03764825,87.626,87.529,10.36557063]
[1773137163374,17.03764825,87.626,87.54,10.36557063]
[1773137163577,10.271,87.613,87.535,10.36557063]
[1773137163769,17.03764825,87.626,87.535,10.36557063]
[1773137163975,17.03764825,87.626,87.485,160.017]
[1773137163976,17.04044536,87.643,87.538,34.33]
[1773137164272,12.20044536,87.678,87.561,34.33]
[1773137164880,159.635,87.696,87.561,10.36557063]
[1773137165174,159.635,87.696,87.553,34.33]
[1773137165775,159.619,87.705,87.562,10.277]
[1773137165776,159.648,87.689,87.562,10.277]
[1773137165972,159.648,87.689,87.545,34.33]
[1773137165973,159.731,87.643,87.504,10.36557063]
[1773137166179,14.99924692,87.62,87.487,10.36557063]
[1773137166381,10.275,87.582,87.501,10.284]
[1773137166580,14.99924692,87.584,87.501,10.284]
[1773137166877,14.99924692,87.584,87.492,5.0]
[1773137167082,14.99924692,87.584,87.512,10.283]
[1773137167284,14.99924692,87.584,87.492,5.0]
[1773137167480,14.97442147,87.653,87.492,5.0]
[1773137167885,10.273,87.596,87.524,10.282]
[1773137168483,25.14759728,87.596,87.511,15.283]
[1773137168682,10.274,87.589,87.511,15.283]
[1773137170789,14.87459728,87.595,87.523,10.282]
[1773137172388,14.87459728,87.595,87.481,34.33]
[1773137172389,14.8937919,87.592,87.508,10.284]
[1773137172685,14.8937919,87.592,87.482,34.33]
[1773137173577,14.8937919,87.592,87.51,8.94101005]
[1773137174187,14.8937919,87.592,87.511,34.33]
[1773137175385,14.8937919,87.592,87.539,10.28]
[1773137175679,14.8937919,87.592,87.515,5.0]
[1773137175879,14.8937919,87.592,87.511,34.33]
[1773137177191,10.274,87.591,87.528,10.281]
[1773137178286,10.273,87.601,87.537,10.28]
[1773137178491,14.90452209,87.6,87.537,10.28]
[1773137179493,14.91415477,87.598,87.537,10.28]
[1773137180001,14.91563396,87.596,87.527,10.281]
[1773137180293,14.91563396,87.596,87.511,34.33]
[1773137181387,14.91563396,87.596,87.537,10.28]
[1773137182196,14.92895457,87.592,87.537,10.28]
[1773137182396,14.92895457,87.592,87.526,10.282]
[1773137182589,14.9185845,87.589,87.49,8.94101005]
[1773137182892,10.276,87.576,87.52,10.282]
[1773137183490,14.9185845,87.575,87.52,10.282]
[1773137183693,14.9185845,87.575,87.52,13.62049578]
[1773137183991,14.91999918,87.57,87.51,10.283]
[1773137184187,14.91999918,87.57,87.52,3.33849578]
[1773137184389,14.91999918,87.559,87.5,3.33849578]
[1773137185398,14.91612983,87.555,87.501,10.285]
[1773137185790,14.91612983,87.555,87.453,10.26276121]
[1773137186098,14.91750719,87.529,87.48,3.33849578]
[1773137186297,14.91750719,87.529,87.49,3.33849578]
[1773137186898,14.91750719,87.529,87.444,20.583]
[1773137187098,14.91750719,87.529,87.49,3.33849578]
[1773137187600,14.91750719,87.529,87.47,8.95001319]
[1773137187801,14.91750719,87.529,87.484,10.287]
[1773137188599,14.91750719,87.529,87.492,10.286]
[1773137188902,14.91750719,87.529,87.47,8.95001319]
[1773137190202,14.91750719,87.529,87.476,10.288]
[1773137191405,10.281,87.528,87.476,10.288]
[1773137192499,10.282,87.521,87.47,8.95001319]
[1773137192706,14.91750719,87.529,87.47,8.95001319]
[1773137195503,14.91750719,87.529,87.487,10.286]
[1773137195704,14.91750719,87.529,87.47,8.95001319]
[1773137197199,14.98847172,87.526,87.478,10.287]
[1773137197507,20.553,87.574,87.47,8.95001319]
[1773137197508,14.98972207,87.541,87.47,8.95001319]
[1773137197706,10.281,87.532,87.47,8.95001319]
[1773137198302,10.281,87.532,87.471,10.26276121]
[1773137198705,14.98702802,87.531,87.47,8.95001319]
[1773137199507,14.98702802,87.529,87.483,10.287]
[1773137199707,14.98702802,87.529,87.47,8.95001319]
[1773137200306,14.98823521,87.523,87.473,10.288]
[1773137201507,14.90943357,87.519,87.473,10.288]
[1773137207112,14.9064028,87.517,87.473,10.288]
[1773137207308,14.9064028,87.517,87.468,10.26276121]
[1773137208210,10.283,87.513,87.469,10.288]
[1773137208713,14.90870032,87.512,87.469,10.288]
[1773137209009,10.284,87.509,87.469,10.288]
[1773137209214,10.284,87.509,87.471,10.26276121]
[1773137209913,14.90870032,87.512,87.474,10.288]
[1773137210113,14.90870032,87.512,87.48,3.34202983]
[1773137210317,10.284,87.503,87.474,10.26276121]
[1773137210616,14.90870032,87.512,87.474,10.26276121]
[1773137212216,14.90460541,87.511,87.474,10.26276121]
[1773137213418,14.89916019,87.509,87.48,3.34202983]
[1773137214413,13.22906085,87.507,87.475,10.26276121]
[1773137214611,13.22906085,87.507,87.47,3.34202983]
[1773137215014,13.22906085,87.507,87.417,34.33]
[1773137215015,13.23097274,87.496,87.428,13.97647749]
[1773137215319,11.55995783,87.489,87.43,3.34202983]
[1773137216415,11.56112076,87.467,87.41,3.34202983]
[1773137217313,11.54150232,87.455,87.41,3.34202983]
[1773137217910,11.54150232,87.455,87.42,3.34202983]
[1773137218112,11.54261498,87.566,87.443,13.97647749]
[1773137218320,11.54261498,87.549,87.456,1.24883338]
[1773137218819,11.54261498,87.549,87.49,3.34202983]
[1773137219516,11.54261498,87.549,87.399,11.48]
[1773137219517,159.887,87.558,87.42,8.94001475]
[1773137219723,8.96045097,87.51,87.42,8.94001475]
[1773137220424,10.286,87.489,87.434,10.292]
[1773137222025,10.286,87.489,87.391,20.595]
[1773137222026,8.96045097,87.53,87.431,9.04269416]
[1773137223525,10.285,87.501,87.449,10.291]
[1773137227420,10.284,87.509,87.456,10.29]
[1773137229330,0.04490539,87.517,87.461,19.379806]
[1773137230324,0.09480281,87.515,87.461,19.379806]
[1773137230828,0.09480281,87.515,87.462,9.09124638]
[1773137231433,10.283,87.513,87.462,9.09124638]
[1773137233134,10.4467721,87.513,87.462,9.09124638]
[1773137234234,10.4467721,87.513,87.463,10.289]
[1773137235027,0.2288163,87.512,87.463,10.289]
[1773137235236,10.283,87.511,87.463,10.289]
[1773137235629,0.25311676,87.511,87.462,9.09124638]
[1773137235831,10.284,87.504,87.462,9.09124638]
[1773137236030,0.25311676,87.503,87.448,9.07830027]
[1773137236930,0.30316334,87.498,87.45,10.291]
[1773137237940,0.30316334,87.498,87.448,9.07830027]
[1773137237941,10.286,87.49,87.448,9.07830027]
[1773137238842,10.285,87.497,87.449,10.291]
[1773137239043,0.37296151,87.535,87.451,9.05133447]
[1773137239238,0.37296151,87.535,87.453,9.05133447]
[1773137239442,0.39433468,87.51,87.455,10.29]
[1773137239841,0.39433468,87.51,87.455,19.34043669]
[1773137240141,0.39433468,87.51,87.459,10.289]
[1773137240142,10.284,87.503,87.459,10.289]
[1773137240742,10.285,87.497,87.456,9.05043669]
[1773137241340,0.43341381,87.493,87.45,10.29]
[1773137241536,0.43341381,87.493,87.45,3.34421315]
[1773137241743,0.43341381,87.493,87.442,9.05289632]
[1773137242442,10.287,87.481,87.442,9.05289632]
[1773137243037,10.287,87.481,87.388,34.33]
[1773137243038,0.45903563,87.469,87.42,20.49350225]
[1773137243238,0.45903563,87.469,87.416,20.49350225]
[1773137243444,0.45903563,87.469,87.413,9.05046133]
[1773137244040,0.48132468,87.459,87.413,9.05046133]
[1773137244247,0.48132468,87.459,87.4,3.34421315]
[1773137244748,10.292,87.438,87.4,3.34421315]
[1773137245343,10.293,87.429,87.39,3.34421315]
[1773137245641,0.47212893,87.445,87.384,9.06437832]
[1773137246546,10.293,87.43,87.384,9.06437832]
[1773137246942,10.294,87.418,87.368,20.49350225]
[1773137247148,0.46129307,87.431,87.365,9.08978561]
[1773137247644,0.48256371,87.406,87.35,9.08900556]
[1773137248448,0.48256371,87.406,87.33,9.08900556]
[1773137249452,0.48570872,87.385,87.33,9.08900556]
[1773137250253,10.3,87.367,87.311,9.10606791]
[1773137251051,0.05219023,87.385,87.316,9.33317684]
[1773137251451,10.299,87.383,87.319,9.33317684]
[1773137252354,10.299,87.383,87.31,8.97582118]
[1773137252355,0.07204933,87.401,87.341,9.33267829]
[1773137253450,10.297,87.398,87.341,9.33267829]
[1773137254847,8.97582118,87.43,87.341,9.33267829]
[1773137255952,8.97582118,87.45,87.351,9.41966459]
[1773137256553,0.0201589,87.42,87.353,9.41287344]
[1773137258348,20.578,87.464,87.372,9.41249382]
[1773137258349,10.294,87.424,87.372,9.41249382]
[1773137259955,10.294,87.424,87.376,9.3518247]
[1773137261058,10.295,87.416,87.376,9.3518247]
[1773137261660,10.294,87.424,87.376,9.3518247]
[1773137262760,10.6144288,87.412,87.362,9.31373158]
[1773137264455,10.295,87.412,87.362,9.31373158]
[1773137264656,10.294,87.422,87.362,9.31373158]
[1773137265559,0.48268772,87.449,87.395,9.25613665]
[1773137266053,10.77368772,87.449,87.395,9.25613665]
[1773137267257,10.292,87.442,87.396,19.75646762]
[1773137268959,10.292,87.442,87.396,9.45946762]
[1773137269661,10.292,87.438,87.388,10.298]
[1773137269959,10.292,87.438,87.389,9.52627994]
[1773137271060,10.292,87.438,87.392,9.52437665]
[1773137272459,10.292,87.438,87.394,10.297]
[1773137272652,10.292,87.438,87.394,19.82135538]
[1773137273158,0.02279862,87.446,87.394,19.82135538]
[1773137273159,10.293,87.431,87.394,9.52435538]
[1773137275560,0.02279862,87.446,87.397,9.5052845]
[1773137276160,10.291,87.445,87.399,9.5052845]
[1773137276360,0.02279862,87.446,87.399,9.5052845]
[1773137276767,10.291,87.444,87.399,19.8022845]
[1773137279074,10.291,87.444,87.4,9.5052845]
[1773137280367,10.292,87.438,87.4,9.5052845]
[1773137281069,10.293,87.431,87.4,9.5052845]
[1773137281264,0.83135073,87.433,87.387,10.46193519]
[1773137281464,10.295,87.412,87.369,19.8052845]
[1773137282062,0.8451516,87.403,87.348,9.5052845]
[1773137283171,1.04236585,87.429,87.358,9.5052845]
[1773137283467,1.04236585,87.429,87.361,9.5052845]
[1773137285372,1.04236585,87.429,87.362,9.25431831]
[1773137285772,10.295,87.411,87.368,19.55431831]
[1773137285967,10.295,87.411,87.327,28.2256648]
[1773137285968,1.04236585,87.429,87.353,9.25431831]
[1773137286274,10.296,87.4,87.356,10.302]
[1773137287072,10.296,87.4,87.356,19.55631831]
[1773137287376,10.296,87.4,87.36,10.301]
[1773137287872,1.16044226,87.409,87.367,10.3]
[1773137288279,11.45544226,87.409,87.367,10.3]
[1773137289676,10.296,87.402,87.361,9.25431831]
[1773137290277,10.296,87.402,87.361,23.23886136]
[1773137291577,10.296,87.402,87.363,10.301]
[1773137291980,10.298,87.389,87.356,13.98454305]
[1773137292279,10.298,87.389,87.351,13.98454305]
[1773137293080,10.297,87.396,87.351,23.23886136]
[1773137293781,10.298,87.387,87.351,23.23886136]
[1773137294182,10.298,87.387,87.352,13.98454305]
[1773137295076,1.25888955,87.396,87.353,9.25431831]
[1773137295276,1.25888955,87.396,87.354,13.98454305]
[1773137295578,10.299,87.382,87.353,23.23886136]
[1773137295782,10.299,87.382,87.298,20.617]
[1773137295783,10.299,87.382,87.343,13.98454305]
[1773137295987,1.27070442,87.383,87.343,13.98454305]
[1773137296279,10.3,87.369,87.332,13.98454305]
[1773137297080,10.3,87.369,87.333,13.98454305]
[1773137297383,10.3,87.369,87.33,10.305]
[1773137297384,10.3,87.369,87.332,13.98454305]
[1773137298478,1.27070442,87.383,87.331,13.98454305]
[1773137298681,1.27070442,87.383,87.325,9.25431831]
[1773137299078,10.302,87.355,87.323,13.98454305]
[1773137299284,1.1919985,87.366,87.317,13.98454305]
[1773137300189,1.1919985,87.366,87.318,9.25431831]
[1773137301087,10.301,87.358,87.318,9.25431831]
[1773137302087,1.1919985,87.366,87.31,13.98454305]
[1773137302088,10.302,87.351,87.31,13.98454305]
[1773137302283,1.23089595,87.35,87.304,9.25431831]
[1773137302485,1.23089595,87.366,87.304,9.25431831]
[1773137302682,1.23089595,87.366,87.307,9.25431831]
[1773137303983,1.29379721,87.356,87.307,9.25431831]
[1773137304589,10.303,87.344,87.307,9.25431831]
[1773137306490,10.303,87.344,87.3,13.98454305]
[1773137306693,1.1626437,87.341,87.299,10.308]
[1773137306986,1.1626437,87.341,87.293,9.25431831]
[1773137307589,11.4656437,87.341,87.294,10.309]
[1773137307784,1.1626437,87.341,87.295,9.25431831]
[1773137308588,10.306,87.321,87.295,9.25431831]
[1773137309494,10.306,87.321,87.28,9.25431831]
[1773137309885,10.306,87.321,87.282,10.31]
[1773137310090,10.305,87.329,87.282,19.56431831]
[1773137310289,1.1626437,87.341,87.283,9.25431831]
[1773137311293,1.37122743,87.328,87.283,9.25431831]
[1773137312790,10.307,87.314,87.283,9.25431831]
[1773137313100,1.37122743,87.328,87.269,9.25431831]
[1773137313593,10.308,87.302,87.269,9.25431831]
[1773137313792,1.4518897,87.301,87.248,9.08536152]
[1773137314796,10.308,87.3,87.248,9.08536152]
[1773137315093,1.61752591,87.3,87.248,9.08536152]
[1773137315887,10.31,87.29,87.248,9.08536152]
[1773137316293,1.61752591,87.3,87.248,9.08536152]
[1773137317496,10.308,87.299,87.248,9.08536152]
[1773137317800,1.55109371,87.329,87.248,9.08536152]
[1773137318201,10.307,87.309,87.25,9.05269626]
[1773137318395,1.55925954,87.349,87.261,9.05269626]
[1773137318694,10.307,87.311,87.261,9.05269626]
[1773137320096,10.308,87.303,87.261,9.05269626]
[1773137320904,10.307,87.311,87.262,9.00554964]
[1773137321903,1.58008949,87.317,87.241,9.00522065]
[1773137322902,10.309,87.297,87.253,9.00537446]
[1773137324806,10.31,87.289,87.253,9.00537446]
[1773137325508,10.309,87.297,87.253,9.00537446]
[1773137326006,10.308,87.305,87.256,8.99253159]
[1773137326902,10.308,87.299,87.256,8.99253159]
[1773137327501,10.309,87.292,87.256,8.99253159]
[1773137329806,10.308,87.299,87.256,8.99253159]
[1773137331504,10.309,87.292,87.256,8.99253159]
[1773137332714,10.31,87.286,87.256,8.99253159]
[1773137333211,10.31,87.286,87.201,34.33]
[1773137333212,1.88850465,87.286,87.239,9.67670317]
[1773137333605,1.88850465,87.286,87.25,3.35943062]
[1773137335417,10.31,87.285,87.25,3.35943062]
[1773137336018,10.311,87.278,87.25,3.35943062]
[1773137336215,10.311,87.278,87.241,9.67670317]
[1773137339619,1.87470685,87.277,87.22,9.67670317]
[1773137339819,1.87470685,87.277,87.23,13.03613379]
[1773137340018,1.87470685,87.277,87.24,3.35943062]
[1773137340515,1.87470685,87.277,87.231,9.67670317]
[1773137340720,10.312,87.267,87.231,9.67670317]
[1773137340919,3.35943062,87.29,87.206,20.49350225]
[1773137340920,1.85964326,87.293,87.25,3.35943062]
[1773137342318,10.309,87.29,87.25,3.35943062]
[1773137342715,1.85964326,87.293,87.25,3.35943062]
[1773137343824,1.85964326,87.293,87.251,9.9153191]
[1773137345323,10.309,87.29,87.251,9.9153191]
[1773137345528,1.85964326,87.293,87.251,9.9153191]
[1773137345820,1.85964326,87.293,87.245,10.61053464]
[1773137346128,1.85964326,87.293,87.24,13.96996526]
[1773137346331,10.311,87.277,87.242,10.61053464]
[1773137347224,10.311,87.277,87.243,10.61053464]
[1773137347624,10.311,87.277,87.25,3.35943062]
[1773137347824,10.31,87.286,87.25,3.35943062]
[1773137348017,1.90365572,87.285,87.244,9.9153191]